Cogmind - Beta 16.1 @@@ ROGUE MODE // 2026.02.11 @ 18:27:49 Player: Rudrot Result: Destroyed by 9N-PB8(R) with Subdweller Laser Performance ------------- Evolutions (0) 0 Regions Visited (2) 400 Robots Destroyed (17) 85 Value Destroyed (406) 406 Prototype IDs (1) 20 Alien Tech Used (0) 0 Bonus (0) 0 TOTAL SCORE: 911 Bonus ------- None Cogmind --------- Core Integrity 0/250 Matter 272/300 Energy 278/280 System Corruption 0% Temperature Cool (6) Movement Rolling (115) Ox1 Location -10/Subcaves Parts ------- > --- POWER (1) -------- Heavy Ion Engine > --- PROPULSION (2) --- Compact Wheel > --- UTILITY (2) ------ Small Storage Unit Light Armor Plating > --- WEAPON (2) ------- Light Assault Rifle Light Assault Rifle > --- INVENTORY (8) ---- Heavy Ion Engine Heavy Ion Engine Field Recycling Unit (0) Peak State ------------ > --- POWER ------------ Heavy Ion Engine > --- PROPULSION ------- Compact Wheel > --- UTILITY ---------- Small Storage Unit Light Armor Plating > --- WEAPON ----------- Light Assault Rifle Light Assault Rifle > --- INVENTORY -------- Heavy Ion Engine Heavy Ion Engine Field Recycling Unit Light Assault Rifle Light Assault Rifle [Rating: 9] Favorites ----------- Power Heavy Ion Engine Engine Heavy Ion Engine Propulsion Compact Wheel Wheel Compact Wheel Utility Small Storage Unit Storage Small Storage Unit Protection Light Armor Plating Weapon Light Assault Rifle Energy Gun Medium Laser Ballistic Gun Light Assault Rifle Build | -11 -10 -10 ------- Run | Yrd Mat Sub Slots Evolved . | . . . Power . | . . . Propulsion . | . . . Utility . | . . . Weapon . | . . . Parts Attached 16 | 6 7 3 Power 4 | 1 2 1 Engine 4 | 1 2 1 Core . | . . . Reactor . | . . . Propulsion 3 | 2 1 . Treads . | . . . Leg . | . . . Wheel 3 | 2 1 . Hover . | . . . Flight . | . . . Utility 3 | 1 1 1 Device . | . . . Storage 1 | 1 . . Processor . | . . . Hackware . | . . . Protection 2 | . 1 1 Artifact . | . . . Weapon 6 | 2 3 1 Energy Gun 1 | 1 . . Energy Cannon . | . . . Ballistic Gun 5 | 1 3 1 Ballistic Cannon . | . . . Launcher . | . . . Special Weapon . | . . . Impact Weapon . | . . . Slashing Weapon . | . . . Piercing Weapon . | . . . Special Melee Weapon . | . . . Unidentified Prototypes 1 | . 1 . Parts Lost 5 | . 3 2 Power 1 | . 1 . Propulsion 2 | . 2 . Utility 1 | . . 1 Weapon 1 | . . 1 Highest Loss Streak 2 | . 2 2 To Critical Strikes . | . . . Average Backups 2 | . 2 4 Power . | . . 2 Propulsion . | . . . Utility . | . . 1 Weapon . | . . . Tool/Special . | . . . Unused Backups 2 | . . 2 Power 1 | . . 1 Propulsion . | . . . Utility 1 | . . 1 Weapon . | . . . Tool/Special . | . . . Average Slot Usage (%) 75 | . 74 79 Engine 12 | . 12 14 Wheel 15 | . 15 14 Storage 14 | . 14 14 Protection 8 | . 7 14 Energy Gun 3 | . 4 . Ballistic Gun 20 | . 20 22 Peak Build Rating 9 | 6 9 9 Average Rating 6 | 4 6 8 On Entrance 4 | . 6 8 Avg Prop Armor Cover (%) . | . . . Naked Turns . | . . . Heaviest Build 18 | 11 18 18 Greatest Support 32 | 32 32 16 Greatest Overweight (x) 3 | . 3 1 Average Overweight (x) . | . . 1 Largest Inventory Capacity 8 | 8 8 8 Average Capacity 7 | 7 8 8 Most Carried 7 | . 7 6 Average Carried 3 | . 3 4 Final Capacity 8 | 8 8 8 Final Carried 6 | . 6 3 Class Distribution -------------------- 100% | Mutant Dominant Class ---------------- Mutant | -10/Materials Mutant | -10/Subcaves Resources | -11 -10 -10 ----------- Run | Yrd Mat Sub Matter Collected 436 | 235 166 35 Remotely . | . . . Salvage Created 588 | . 534 54 Parts 32 | . 32 . Haulers Intercepted 1 | . 1 . Recyclers Shooed . | . . . Parts Field Recycled . | . . . Retrieved Matter . | . . . Parts Self-Destructed . | . . . Prevented . | . . . Parts Restored . | . . . Kills | -11 -10 -10 ------- Run | Yrd Mat Sub Combat Hostiles Destroyed 13 | . 12 1 Guns 12 | . 11 1 AOE 1 | . 1 . Classes Destroyed 6 | . 5 1 Hauler 1 | . 1 . Recycler 2 | . 2 . Watcher 1 | . 1 . Swarmer 5 | . 5 . Grunt 7 | . 7 . Sentry 1 | . . 1 Best Kill Streak 6 | . 6 1 Combat Bots Only 5 | . 5 1 Max Kills in Single Turn 3 | . 3 1 Gunslinging . | . . . Exploded 1 | . 1 . Melee . | . . . Uniques/NPCs Destroyed . | . . . Combat | -11 -10 -10 -------- Run | Yrd Mat Sub Hostile Shots Fired 114 | . 90 24 Missed 35 | . 28 7 Hits 79 | . 62 17 Projectile 79 | . 62 17 Damage Taken 1016 | . 734 282 Core 266 | . 201 65 Absorbed by Shields . | . . . Core Remaining (%) 100 | 100 . . Volleys Fired 70 | . 53 17 Largest 2 | . 2 2 Hottest 70 | . 70 40 Shots Fired 138 | . 105 33 Gun 138 | . 105 33 Cannon . | . . . Launcher . | . . . Special . | . . . Kinetic 109 | . 76 33 Thermal 29 | . 29 . Explosive . | . . . Electromagnetic . | . . . Robot Hit Streak 17 | . 9 17 Robot Miss Streak 9 | . 9 2 Penetration Max . | . . . Secondary Targets 1 | . 1 . Max Gunslinging Chain 1 | . 1 . Shots Hit Robots 90 | . 63 27 Core Hits 37 | . 31 6 Critical Kills . | . . . Critical Parts Destroyed . | . . . Critical Strikes 5 | . 5 . Burn 5 | . 5 . Melee Attacks . | . . . Impact . | . . . Slashing . | . . . Piercing . | . . . Sneak Attacks . | . . . Combat Hostiles . | . . . Follow-up Attacks . | . . . Damage Inflicted 1041 | . 811 230 Guns 819 | . 589 230 Cannons . | . . . Explosions 222 | . 222 . Melee . | . . . Ramming . | . . . Kinetic 619 | . 389 230 Thermal 200 | . 200 . Explosive 222 | . 222 . Electromagnetic . | . . . Impact . | . . . Slashing . | . . . Piercing . | . . . Highest Corruption . | . . . Average Corruption . | . . . Corruption Purged . | . . . Corruption Blocked . | . . . Overload Shots . | . . . Overflow Damage . | . . . Projectiles . | . . . Explosions . | . . . Melee . | . . . Knockbacks . | . . . Impact . | . . . Kinetic . | . . . Secondary . | . . . Self-Inflicted Damage 98 | . 98 . Shots 2 | . 2 . Rammed . | . . . Targets Rammed . | . . . Kicked . | . . . Crushed . | . . . Highest Temperature 160 | . 160 . Average Temperature 51 | . 51 . Received Heat Transfer 285 | . 195 90 Siege Activations . | . . . Martial Activations . | . . . Shielding Activations . | . . . Robots Disrupted . | . . . Combat Hostiles . | . . . Robots Corrupted . | . . . Combat Hostiles . | . . . Parts Fried . | . . . Impact Corruptions . | . . . Robots Melted . | . . . Combat Hostiles . | . . . Parts Melted 2 | . 2 . Heat Transferred 962 | . 962 . Parts Sabotaged . | . . . Parts Stolen . | . . . Parts Stripped . | . . . Power Chain Reactions . | . . . Alert | -11 -10 -10 ------- Run | Yrd Mat Sub Maximum Alert Level . | . . . Low Security (%) 100 | 100 100 . Level 1 . | . . . Level 2 . | . . . Level 3 . | . . . Level 4 . | . . . Level 5 . | . . . High Security . | . . . Max Security . | . . . Peak Influence 172 | . 172 . Initial . | . . . Average 98 | . 105 . Influence Increases 421 | . 401 20 Destroy 0b10 Robot/C 260 | . 240 20 Destroy 0b10 Robot/NC 20 | . 20 . Destroy Leader 54 | . 54 . Successful Hack 12 | . 12 . Disable Machine 45 | . 45 . Destroy Structure 30 | . 30 . Influence Decreases 421 | . 329 92 Entered New Map 36 | . . 36 Time Decay 345 | . 299 46 Lost Part 40 | . 30 10 Squads Dispatched 2 | . 2 . Investigation . | . . . Extermination . | . . . Reinforcement 2 | . 2 . Assault . | . . . Garrison . | . . . Intercept . | . . . Searches Triggered . | . . . Construction Impeded . | . . . Haulers Reinforced . | . . . Active Scanning Responses . | . . . Cargo Convoy Interrupts . | . . . Stealth | -11 -10 -10 --------- Run | Yrd Mat Sub Distress Signals 3 | . 3 . Communications Jammed . | . . . Distress Signals . | . . . Times Spotted 22 | . 19 3 Peak Tracking Total 5 | . 5 2 Tactical Retreats . | . . . Traps | -11 -10 -10 ------- Run | Yrd Mat Sub Traps Triggered 1 | . 1 . Indirectly . | . . . Trap Hack Attempts . | . . . Triggered . | . . . Disarmed . | . . . Reprogrammed . | . . . Reused . | . . . Traps Extracted . | . . . Installed . | . . . Triggered . | . . . Machines | -11 -10 -10 ---------- Run | Yrd Mat Sub Machines Disabled 3 | . 3 . Max in Single Turn 3 | . 3 . Machines Repaired . | . . . Machines Dismantled . | . . . Machines Sabotaged . | . . . Overloaded Fab Kills . | . . . Hacking | -11 -10 -10 --------- Run | Yrd Mat Sub Machines Accessed 1 | . 1 . Terminals . | . . . Fabricators . | . . . Repair Stations 1 | . 1 . Recycling Units . | . . . Scanalyzers . | . . . Garrison Access . | . . . Total Hacks 2 | . 2 . Successful 1 | . 1 . Failed 1 | . 1 . Catastrophic 1 | . 1 . Database Lockouts . | . . . Manual . | . . . Terminals . | . . . Fabricators . | . . . Repair Stations 2 | . 2 . Recycling Units . | . . . Scanalyzers . | . . . Garrison Access . | . . . Terminal Hacks . | . . . Fabricator Hacks . | . . . Repair Station Hacks 1 | . 1 . Scan Component 1 | . 1 . Recycling Unit Hacks . | . . . Scanalyzer . | . . . Garrison Access Hacks . | . . . Unauthorized Hacks . | . . . Terminals . | . . . Fabricators . | . . . Repair Stations . | . . . Recycling Units . | . . . Scanalyzers . | . . . Garrison Access . | . . . Data Cores Recovered . | . . . Used . | . . . Hacking Detections 1 | . 1 . Full Trace Events . | . . . Feedback Events . | . . . Feedback Blocked . | . . . Robot Schematics Acquired . | . . . Robots Built . | . . . Authchips . | . . . Time . | . . . Total Robot Build Rating . | . . . Part Schematics Acquired . | . . . Parts Built . | . . . Authchips . | . . . Time . | . . . Total Part Build Rating . | . . . Part Studies Acquired . | . . . Parts Repaired . | . . . Time . | . . . Parts Recycled . | . . . Recycled Matter . | . . . Retrieved Matter . | . . . Retrieved Components . | . . . Parts Scanalyzed . | . . . Part Schematics Acquired . | . . . Parts Damaged . | . . . Bothacking | -11 -10 -10 ------------ Run | Yrd Mat Sub Used RIF Installer . | . . . Robots Hacked . | . . . Non-combat . | . . . Combat . | . . . Robot Hacks Applied . | . . . Relay Couplers Released . | . . . Fabnet Peak Effective % . | . . . Robots Rewired . | . . . Allies Hacked . | . . . Hacks Repelled . | . . . Allies | -11 -10 -10 -------- Run | Yrd Mat Sub Total Allies . | . . . Largest Group . | . . . Highest-Rated Group . | . . . Highest-Rated Ally . | . . . Total Orders . | . . . Ally Attacks . | . . . Total Damage . | . . . Kills . | . . . Allies Corrupted . | . . . Allies Melted . | . . . Intel | -11 -10 -10 ------- Run | Yrd Mat Sub Active Infowar (turns) . | . . . Robot Analysis Total . | . . . Derelict Logs Recovered . | . . . Drone Launches . | . . . Drone Recoveries . | . . . Exploration | -11 -10 -10 ------------- Run | Yrd Mat Sub Turns Passed 953 | 57 766 130 Spaces Moved 627 | 49 505 73 Core 32 | 1 31 . Treads . | . . . Legs . | . . . Wheels 595 | 48 474 73 Hover . | . . . Flight . | . . . Fastest Speed 50 | 50 90 115 Average Speed 110 | 98 110 115 Slowest Speed 200 | 100 200 115 Overloaded Moves . | . . . Propulsion Burnouts . | . . . Robots Hopped . | . . . Potential Cave-ins . | . . . Cave-ins Triggered . | . . . Exploration Rate (%) 27 | 4 72 7 Regions Visited 2 Branch Regions 1 Pre-discovered Areas . | . . . Known Exits Taken . | . . . Unknown Exits Taken 2 | 1 1 . Scrap Searched . | . . . Spaces Dug . | . . . Terrain Destroyed 32 | . 32 . Melee . | . . . Projectile . | . . . AOE 32 | . 32 . Terrain Rammed . | . . . Walls Destroyed . | . . . Machines Disabled . | . . . Actions | -11 -10 -10 --------- Run | Yrd Mat Sub Total 772 | 54 624 94 Wait 44 | . 44 . Move 625 | 48 504 73 Hop . | . . . Pick Up 6 | . 6 . Fast Attach 11 | 6 5 . Attach 4 | . 1 3 Detach 4 | . 4 . Swap 3 | . 2 1 Drop 5 | . 5 . Fire 70 | . 53 17 Melee . | . . . Ram . | . . . Kick . | . . . Crush . | . . . Escape Stasis . | . . . Rewire . | . . . Trap . | . . . Miscellaneous . | . . . Route ------- -11/Scrapyard -10/Materials (discovered 4 exits: [*Mat x2] / [*Min] / [*Sub]) -10/Subcaves (discovered 1 exit: [*Mat]) History --------- Turn | Location | Event 32 | -11/Scrapyard | Discovered new exit (range 15) 58 | -11/Scrapyard | Entered Materials 332 | -10/Materials | Build established: Mutant 365 | -10/Materials | Core integrity fell below 50% 430 | -10/Materials | Discovered new exit (range 6) 523 | -10/Materials | Discovered new exit (range 10) 683 | -10/Materials | Core integrity fell below 20% 723 | -10/Materials | Discovered new exit (range 8) 807 | -10/Materials | Discovered new exit (range 5) 824 | -10/Materials | Entered Subcaves 825 | -10/Subcaves | Approached by a straggling Scientist 926 | -10/Subcaves | Discovered new exit (range 7) 954 | -10/Subcaves | Destroyed by 9N-PB8(R) with Subdweller Laser Last Messages --------------- GOAL=ESCAPE 00825_ 9N-JIU(c): "Thank the algorithms! I was beginning to lose hope I'd never make it past all the Subs lurking out here." 00828_ 9N-JIU(c): "Hey, let me tag along and I can get us both out of this nasty situation. At least I think I can... The group I got separated from was talking about a shortcut back to the UFD." 00873_ Lgt. Armor Plating destroyed. 9N-JIU(c): "I think it's somewhere northwest of here" 00885_ Lgt. Assault Rifle destroyed. 00893_ Y-45 Defender destroyed. 00903_ Acquired 35 matter. 9N-JIU(c): "I think it's somewhere northwest of here" 00926_ EXIT=FOUND 00944_ YN-K78(R) destroyed. 00952_ Subatomizers dissect the Sub. Monowheel. Map ----- +----------------------------------------------------+ | ??????????????????????????????????????????????? | | ??????????????????????????????????????????????? | | ??????????????????????????????????????????????? | | ??????????????????????????????????????????????? | | ??????????????????????????????????????????????? | | ??????????????????????????????????????????????? | | ??????????????????????????????????????????????? | | ??????????????????????????????????????????????? | | ??????????????????????????????????????????????? | | ??????????????????????????????????????????????? | | ??????????????????????????????????????????????? | | ??????????????????????????????????????????????? | | ??????????????????????????????????????????????? | | ??????????????????????????????????????????????? | | ??????????????????????????????????????????????? | | ??????????????????????????????????????????????? | | ??????????????##??????????????????????????????? | | ?????????????"" ?????????????????????????????? | | ?????????????" ????????????##??????????????? | | ??????????????# "??????????# #??????????????? | | ??????????????# ????????# ##?????????????? | | ??????????????# " ###????# #?????????????? | | ???????????????# R! #### #?????????????? | | ????????????????? ""=%[ #?????????????? | | ????????????????????#!< #?????????????? | | ?????????????????????# @ #??????????????? | | ??????????????##?????## ##??????????????? | | ?????????????## #?##### c ##??????????????? | | ?????????????# ## #??????????????? | | ?????????????# ## #?????????????? | | ?????????????## #?# ###?????????????? | | ??????????????## #??##???????????????? | | ???????????????# #???????????????????? | | ???????????????# #?#######???????????? | | ??????????????## ### #???????????? | | ???????####???# ##### #???????????? | | ???????# #### ##?## % #???????????? | | ??????# #### #???????????? | | ???????# # #???????????? | | ???????### ######???????????? | | ?????????## ## ##????????????????? | | ????????#### ### ##?????????????????? | | ????????# ## ### ## ## #####???????????????? | | ???????## ## #### ## #???????????????? | | ???????# ## ### #???????????????? | | ???????# ### ## #???????????????? | | ??????## ### #####???????????????? | | ?###### # ##???????????????????? | | ## ##????????????????????? | | # ### ##?????????????????????? | +----------------------------------------------------+ Best States ------------- Heat Dissipation 25 Energy Generation 14 Energy Capacity 280 Matter Stores 300 Matter Capacity 300 Sight Range 16 Terrain Scan Density 10 Armor Coverage 150 Evasion (%) 42 Item Schematics ----------------- None Robot Schematics ------------------ None Fabricated ------------ Nothing Repaired ---------- Nothing Studied --------- None Alien Tech Used ----------------- None Achievements -------------- None Challenges ------------ None Game ------ Seed GuidanceDecoderMatrix Manual? 0 Play Time 00:09:19 Cumulative 29.0 hours Start 2026.02.11 @ 18:19:40 End 2026.02.11 @ 18:27:49 Sessions 1 Manual Loads 0 Difficulty Rogue Special Mode None Game No. 27 Rogue 27 Adventurer 0 Explorer 0 Win Type - Total 0 Types 0/0/0/0/0/0/0/0/0/0 Lore% 16 Gallery% 14 Achievement% 13 Wizard Run 0 Options --------- Layout 1 ASCII 0 Keyboard 1 Movement Numpad Keybinds 0 Fullscreen 2 Font 24/Cog Map View 50x35 Zoom Use 0% Tactical HUD 1 Map Filters NONE Filters NONE Steam 1 RUN: aee371b2-5e0d-4d8e-a78c-952397217db1